Cogmind - Beta 14 @@@ ROGUE MODE // 2024.08.17 @ 16:33:32 Player: satan5 Result: Self-destructed Performance ------------- Evolutions (2) 1000 Regions Visited (5) 1000 Robots Destroyed (21) 105 Value Destroyed (444) 444 Prototype IDs (2) 40 Alien Tech Used (0) 0 Bonus (0) 0 TOTAL SCORE: 2589 Bonus ------- None Cogmind --------- Core Integrity 550/550 Matter 290/300 Energy 100/100 System Corruption 0% Temperature Cool (0) Movement Walking (190) Ox1 Location -8/Materials Parts ------- > --- POWER (1) -------- (None) > --- PROPULSION (4) --- Aluminum Leg Aluminum Leg > --- UTILITY (4) ------ Large Storage Unit Advanced Visual Processing Unit Hacking Suite > --- WEAPON (2) ------- Assault Rifle Minigun > --- INVENTORY (15) --- Light Ion Engine Improved Ion Engine Light Deuterium Engine Aluminum Leg Carbon-fiber Leg Improved Hover Unit Improved Hover Unit Improved Hover Unit Improved Hover Unit Improved Heat Sink Improved Terrain Scanner Insulated Plating Beam Cannon Grenade Launcher Mining Claw Peak State ------------ > --- POWER ------------ Ion Engine > --- PROPULSION ------- Aluminum Leg Aluminum Leg > --- UTILITY ---------- Large Storage Unit Advanced Visual Processing Unit Hacking Suite > --- WEAPON ----------- Assault Rifle Minigun > --- INVENTORY -------- Light Ion Engine Improved Ion Engine Light Deuterium Engine Aluminum Leg Carbon-fiber Leg Improved Hover Unit Improved Hover Unit Improved Hover Unit Improved Hover Unit Improved Heat Sink Improved Terrain Scanner Insulated Plating Beam Cannon Grenade Launcher Mining Claw [Rating: 17] Favorites ----------- Power Ion Engine Engine Ion Engine Propulsion Aluminum Leg Leg Aluminum Leg Utility Large Storage Unit Storage Large Storage Unit Processor Advanced Visual Processing Unit Hackware Hacking Suite Weapon Assault Rifle Energy Gun EM Pulse Gun Energy Cannon Beam Cannon Ballistic Gun Assault Rifle Launcher Grenade Launcher Build | -11 -10 -10 -10 -9 -8 ------- Run | Yrd Mat Min Exi Min Mat Slots Evolved 4 | . . . . . 4 Power . | . . . . . . Propulsion 2 | . . . . . 2 Utility 2 | . . . . . 2 Weapon . | . . . . . . Parts Attached 18 | 7 6 4 . . 1 Power 1 | 1 . . . . . Engine 1 | 1 . . . . . Core . | . . . . . . Reactor . | . . . . . . Propulsion 4 | 2 1 1 . . . Treads . | . . . . . . Leg 4 | 2 1 1 . . . Wheel . | . . . . . . Hover . | . . . . . . Flight . | . . . . . . Utility 5 | 1 2 1 . . 1 Device . | . . . . . . Storage 2 | 1 1 . . . . Processor 2 | . 1 1 . . . Hackware 1 | . . . . . 1 Protection . | . . . . . . Artifact . | . . . . . . Weapon 8 | 3 3 2 . . . Energy Gun 3 | 2 1 . . . . Energy Cannon 1 | . . 1 . . . Ballistic Gun 3 | 1 1 1 . . . Ballistic Cannon . | . . . . . . Launcher 1 | . 1 . . . . Special Weapon . | . . . . . . Impact Weapon . | . . . . . . Slashing Weapon . | . . . . . . Piercing Weapon . | . . . . . . Special Melee Weapon . | . . . . . . Unidentified Prototypes . | . . . . . . Parts Lost 2 | . . 1 . . 1 Power 1 | . . . . . 1 Propulsion 1 | . . 1 . . . Utility . | . . . . . . Weapon . | . . . . . . Highest Loss Streak 1 | . . 1 . . 1 To Critical Strikes . | . . . . . . Average Slot Usage (%) 98 | . 98 99 100 100 69 Engine 13 | . 14 14 14 14 9 Leg 27 | . 27 27 28 28 18 Storage 13 | . 14 14 14 14 9 Processor 13 | . 12 14 14 14 9 Energy Gun 2 | . 8 . . . . Ballistic Gun 22 | . 14 25 28 28 18 Launcher 1 | . 5 . . . . Peak Build Rating 17 | 6 10 14 14 14 17 Average Rating 11 | 4 8 13 14 14 16 On Entrance 9 | . 6 10 14 14 14 Naked Turns . | . . . . . . Heaviest Build 30 | 14 30 30 30 30 30 Greatest Support 20 | 20 20 20 20 20 20 Greatest Overweight (x) 2 | 2 1 1 1 1 1 Average Overweight (x) . | . . 1 1 1 1 Largest Inventory Capacity 15 | 8 15 15 15 15 15 Average Capacity 13 | 7 10 15 15 15 15 Most Carried 15 | 6 14 15 15 15 15 Average Carried 12 | 2 8 14 15 15 15 Final Capacity 15 | 8 15 15 15 15 15 Final Carried 15 | 3 14 15 15 15 15 Class Distribution -------------------- 100% | Mutant Dominant Class ---------------- Mutant | -10/Materials Mutant | -10/Mines Mutant | -10/Exiles Mutant | -9/Mines Mutant | -8/Materials Resources | -11 -10 -10 -10 -9 -8 ----------- Run | Yrd Mat Min Exi Min Mat Matter Collected 652 | 208 245 168 . 31 . Remotely . | . . . . . . Salvage Created 691 | 20 537 134 . . . Parts 45 | 3 38 4 . . . Haulers Intercepted 2 | . 2 . . . . Recyclers Shooed 5 | . 5 . . . . Parts Field Recycled . | . . . . . . Retrieved Matter . | . . . . . . Parts Self-Destructed . | . . . . . . Prevented . | . . . . . . Kills | -11 -10 -10 -10 -9 -8 ------- Run | Yrd Mat Min Exi Min Mat Combat Hostiles Destroyed 12 | . 8 4 . . . Guns 5 | . 3 2 . . . AOE 7 | . 5 2 . . . Classes Destroyed 7 | 1 6 . . . . Tunneler 1 | 1 . . . . . Hauler 2 | . 2 . . . . Recycler 3 | . 3 . . . . Operator 1 | . 1 . . . . Watcher 2 | . 2 . . . . Swarmer 5 | . 5 . . . . Grunt 7 | . 3 4 . . . Best Kill Streak 4 | 1 4 2 . . . Combat Bots Only 3 | . 3 2 . . . Max Kills in Single Turn 2 | 1 2 1 . . . Gunslinging . | . . . . . . Exploded 2 | . 2 1 . . . Melee . | . . . . . . Uniques/NPCs Destroyed . | . . . . . . Combat | -11 -10 -10 -10 -9 -8 -------- Run | Yrd Mat Min Exi Min Mat Hostile Shots Fired 48 | . 28 18 . . 2 Missed 13 | . 9 3 . . 1 Damage Taken 498 | . 218 266 . . 14 Core 61 | . 47 14 . . . Absorbed by Shields . | . . . . . . Core Remaining (%) 87 | 100 . . . 75 . Volleys Fired 48 | 2 33 13 . . . Largest 2 | 2 2 2 . . . Hottest 60 | 60 60 45 . . . Shots Fired 85 | 4 59 22 . . . Gun 74 | 4 52 18 . . . Cannon . | . . . . . . Launcher 11 | . 7 4 . . . Special . | . . . . . . Kinetic 46 | 2 26 18 . . . Thermal . | . . . . . . Explosive 11 | . 7 4 . . . Electromagnetic 28 | 2 26 . . . . Robot Hit Streak 11 | 1 6 11 . . . Robot Miss Streak 5 | 1 5 1 . . . Penetration Max . | . . . . . . Secondary Targets . | . . . . . . Shots Hit Robots 52 | 2 32 18 . . . Core Hits 35 | 1 24 10 . . . Critical Kills . | . . . . . . Critical Parts Destroyed . | . . . . . . Critical Strikes . | . . . . . . Melee Attacks . | . . . . . . Impact . | . . . . . . Slashing . | . . . . . . Piercing . | . . . . . . Sneak Attacks . | . . . . . . Combat Hostiles . | . . . . . . Follow-up Attacks . | . . . . . . Damage Inflicted 1190 | 26 827 337 . . . Guns 647 | 26 401 220 . . . Cannons . | . . . . . . Explosions 543 | . 426 117 . . . Melee . | . . . . . . Ramming . | . . . . . . Kinetic 451 | 26 205 220 . . . Thermal 38 | . 38 . . . . Explosive 505 | . 388 117 . . . Electromagnetic 196 | . 196 . . . . Impact . | . . . . . . Slashing . | . . . . . . Piercing . | . . . . . . Highest Corruption 1 | . 1 1 1 1 . Average Corruption 1 | . 1 1 1 1 . Corruption Purged . | . . . . . . Corruption Blocked . | . . . . . . Effects 14 | . 2 5 5 2 . Message Errors 5 | . 1 1 2 1 . Matter Fused 5 | . 1 2 1 1 . Heat Flow Errors 1 | . . . 1 . . Energy Discharges 2 | . . 1 1 . . Data Loss (minor) 1 | . . 1 . . . Overload Shots . | . . . . . . Overflow Damage 12 | . 12 . . . . Projectiles . | . . . . . . Explosions 12 | . 12 . . . . Melee . | . . . . . . Knockbacks . | . . . . . . Impact . | . . . . . . Kinetic . | . . . . . . Secondary . | . . . . . . Self-Inflicted Damage 82 | . 40 42 . . . Shots 3 | . 1 2 . . . Rammed . | . . . . . . Targets Rammed . | . . . . . . Kicked . | . . . . . . Crushed . | . . . . . . Highest Temperature 134 | . 21 27 134 . . Average Temperature 20 | . 13 13 68 . . Received Heat Transfer 171 | . 54 117 . . . Siege Activations . | . . . . . . Robots Corrupted . | . . . . . . Combat Hostiles . | . . . . . . Parts Fried . | . . . . . . Impact Corruptions . | . . . . . . Robots Melted . | . . . . . . Combat Hostiles . | . . . . . . Parts Melted 1 | . 1 . . . . Heat Transferred 50 | . 50 . . . . Parts Sabotaged . | . . . . . . Parts Stolen . | . . . . . . Parts Stripped . | . . . . . . Power Chain Reactions 1 | . 1 . . . . Alert | -11 -10 -10 -10 -9 -8 ------- Run | Yrd Mat Min Exi Min Mat Peak Influence 242 | 5 215 242 . . 5 Initial 83 | . 3 83 . . . Average 100 | 1 111 114 . . . Maximum Alert Level 1 | . 1 1 . . . Low Security (%) 78 | 100 71 80 . 100 100 Level 1 21 | . 28 19 . . . Level 2 . | . . . . . . Level 3 . | . . . . . . Level 4 . | . . . . . . Level 5 . | . . . . . . High Security . | . . . . . . Max Security . | . . . . . . Squads Dispatched 1 | . 1 . . . . Investigation . | . . . . . . Extermination . | . . . . . . Reinforcement 1 | . 1 . . . . Assault . | . . . . . . Garrison . | . . . . . . Intercept . | . . . . . . Searches Triggered . | . . . . . . Construction Impeded . | . . . . . . Haulers Reinforced . | . . . . . . Active Scanning Responses . | . . . . . . Cargo Convoy Interrupts . | . . . . . . Stealth | -11 -10 -10 -10 -9 -8 --------- Run | Yrd Mat Min Exi Min Mat Distress Signals . | . . . . . . Communications Jammed . | . . . . . . Distress Signals . | . . . . . . Times Spotted 21 | . 13 4 . . 4 Peak Tracking Total 5 | . 3 2 . . 5 Tactical Retreats . | . . . . . . Traps | -11 -10 -10 -10 -9 -8 ------- Run | Yrd Mat Min Exi Min Mat Traps Triggered 2 | . 1 1 . . . Indirectly . | . . . . . . Trap Hack Attempts . | . . . . . . Triggered . | . . . . . . Disarmed . | . . . . . . Reprogrammed . | . . . . . . Reused . | . . . . . . Traps Extracted . | . . . . . . Installed . | . . . . . . Triggered . | . . . . . . Machines | -11 -10 -10 -10 -9 -8 ---------- Run | Yrd Mat Min Exi Min Mat Machines Disabled 4 | . 2 2 . . . Max in Single Turn 2 | . 1 2 . . . Machines Repaired . | . . . . . . Machines Dismantled . | . . . . . . Machines Sabotaged . | . . . . . . Overloaded Fab Kills . | . . . . . . Hacking | -11 -10 -10 -10 -9 -8 --------- Run | Yrd Mat Min Exi Min Mat Machines Accessed 9 | . 7 1 . . 1 Terminals 8 | . 7 . . . 1 Fabricators . | . . . . . . Repair Stations . | . . . . . . Recycling Units . | . . . . . . Scanalyzers . | . . . . . . Garrison Access . | . . . . . . Total Hacks 30 | . 26 1 . . 3 Successful 16 | . 14 1 . . 1 Failed 14 | . 12 . . . 2 Catastrophic 2 | . 2 . . . . Database Lockouts . | . . . . . . Manual 24 | . 21 . . . 3 Terminals 29 | . 26 . . . 3 Fabricators . | . . . . . . Repair Stations . | . . . . . . Recycling Units . | . . . . . . Scanalyzers . | . . . . . . Garrison Access . | . . . . . . Terminal Hacks 9 | . 7 1 . . 1 Prototype ID Bank 1 | . 1 . . . . Open Door 1 | . . 1 . . . Branch Access Points 1 | . . . . . 1 Unreport Threat 2 | . 2 . . . . Locate Traps 1 | . 1 . . . . Patrol Status 1 | . 1 . . . . Hauler Manifests 1 | . 1 . . . . Zone Layout 1 | . 1 . . . . Fabricator Hacks . | . . . . . . Repair Station Hacks . | . . . . . . Recycling Unit Hacks . | . . . . . . Scanalyzer . | . . . . . . Garrison Access Hacks . | . . . . . . Unauthorized Hacks 7 | . 7 . . . . Terminals 7 | . 7 . . . . Assimilate 1 | . 1 . . . . Botnet 5 | . 5 . . . . Operators 1 | . 1 . . . . Fabricators . | . . . . . . Repair Stations . | . . . . . . Recycling Units . | . . . . . . Scanalyzers . | . . . . . . Garrison Access . | . . . . . . Data Cores Recovered . | . . . . . . Used . | . . . . . . Hacking Detections 7 | . 7 . . . . Full Trace Events 2 | . 2 . . . . Feedback Events 1 | . 1 . . . . Corruption 1 | . 1 . . . . Feedback Blocked . | . . . . . . Robot Schematics Acquired . | . . . . . . Robots Built . | . . . . . . Authchips . | . . . . . . Time . | . . . . . . Total Robot Build Rating . | . . . . . . Part Schematics Acquired . | . . . . . . Parts Built . | . . . . . . Authchips . | . . . . . . Time . | . . . . . . Total Part Build Rating . | . . . . . . Parts Repaired . | . . . . . . Time . | . . . . . . Parts Recycled . | . . . . . . Recycled Matter . | . . . . . . Retrieved Matter . | . . . . . . Retrieved Components . | . . . . . . Parts Scanalyzed . | . . . . . . Part Schematics Acquired . | . . . . . . Parts Damaged . | . . . . . . Bothacking | -11 -10 -10 -10 -9 -8 ------------ Run | Yrd Mat Min Exi Min Mat Used RIF Installer . | . . . . . . Robots Hacked . | . . . . . . Non-combat . | . . . . . . Combat . | . . . . . . Robot Hacks Applied . | . . . . . . Relay Couplers Released . | . . . . . . Fabnet Peak Effective % . | . . . . . . Robots Rewired . | . . . . . . Allies Hacked . | . . . . . . Hacks Repelled . | . . . . . . Allies | -11 -10 -10 -10 -9 -8 -------- Run | Yrd Mat Min Exi Min Mat Total Allies 3 | . . 3 . . . Largest Group 3 | . . 3 3 3 3 Highest-Rated Group 40 | . . 40 40 40 40 Highest-Rated Ally 16 | . . 16 16 16 16 Total Orders . | . . . . . . Ally Attacks . | . . . . . . Total Damage . | . . . . . . Kills . | . . . . . . Allies Corrupted . | . . . . . . Allies Melted . | . . . . . . Intel | -11 -10 -10 -10 -9 -8 ------- Run | Yrd Mat Min Exi Min Mat Robot Analysis Total . | . . . . . . Derelict Logs Recovered 1 | . . 1 . . . Drone Launches . | . . . . . . Drone Recoveries . | . . . . . . Exploration | -11 -10 -10 -10 -9 -8 ------------- Run | Yrd Mat Min Exi Min Mat Turns Passed 2452 | 60 740 884 614 80 74 Spaces Moved 1307 | 42 424 436 324 43 38 Core 17 | 17 . . . . . Treads . | . . . . . . Legs 1290 | 25 424 436 324 43 38 Wheels . | . . . . . . Hover . | . . . . . . Flight . | . . . . . . Fastest Speed 50 | 50 120 190 190 190 190 Average Speed 170 | 94 139 190 190 190 190 Slowest Speed 190 | 150 190 190 190 190 190 Overloaded Moves . | . . . . . . Propulsion Burnouts . | . . . . . . Robots Hopped . | . . . . . . Cave-ins Triggered . | . . . . . . Exploration Rate (%) 45 | 4 66 98 86 14 7 Regions Visited 5 Branch Regions 3 Pre-discovered Areas . | . . . . . . Known Exits Taken . | . . . . . . Unknown Exits Taken 5 | 1 1 1 1 1 . Scrap Searched 2 | . . 1 . 1 . Spaces Dug 3 | . 3 . . . . Terrain Destroyed 78 | . 45 33 . . . Melee . | . . . . . . Projectile . | . . . . . . AOE 78 | . 45 33 . . . Terrain Rammed . | . . . . . . Walls Destroyed . | . . . . . . Machines Disabled . | . . . . . . Actions | -11 -10 -10 -10 -9 -8 --------- Run | Yrd Mat Min Exi Min Mat Total 1444 | 57 511 472 323 42 39 Wait 47 | . 36 11 . . . Move 1302 | 41 423 435 323 42 38 Hop . | . . . . . . Pick Up 25 | 7 12 6 . . . Fast Attach 6 | 2 3 . . . 1 Attach 7 | 4 1 2 . . . Detach . | . . . . . . Swap 5 | 1 2 2 . . . Drop 4 | . 1 3 . . . Fire 48 | 2 33 13 . . . Melee . | . . . . . . Ram . | . . . . . . Kick . | . . . . . . Crush . | . . . . . . Escape Stasis . | . . . . . . Rewire . | . . . . . . Trap . | . . . . . . Miscellaneous . | . . . . . . Route ------- -11/Scrapyard -10/Materials (discovered 3 exits: [*Mat x2] / *Min) -10/Mines (discovered 3 exits: [*Mat x2] / *Exi) -10/Exiles (discovered 2 exits: [*Min x2]) -9/Mines -8/Materials (discovered 1 exit: Fac) History --------- Turn | Location | Event 7 | -11/Scrapyard | Discovered new exit (range 16) 61 | -11/Scrapyard | Entered Materials 304 | -10/Materials | Build established: Mutant 351 | -10/Materials | Discovered new exit (range 11) 526 | -10/Materials | Discovered new exit (range 17) 759 | -10/Materials | Discovered new exit (range 17) 801 | -10/Materials | Entered Mines 972 | -10/Mines | Met a Derelict who couldn't figure out how to use a Trap Extractor 1111 | -10/Mines | Discovered new exit (range 8) 1157 | -10/Mines | Learned 8 Materials zone layouts 1455 | -10/Mines | Discovered new exit (range 13) 1493 | -10/Mines | Assisted by bots powering up and referring to "LRC-V3" 1668 | -10/Mines | Deemed a non-threat by the Exiles lab entrance 1668 | -10/Mines | Discovered new exit (range 5) 1685 | -10/Mines | Entered Exiles 1685 | -10/Exiles | Accompanied by 3 allies 1716 | -10/Exiles | Discovered new exit (range 19) 1727 | -10/Exiles | Met 8R-AWN 1765 | -10/Exiles | Met EX-HEX 1822 | -10/Exiles | Met EX-BIN 1841 | -10/Exiles | Met EX-DEC 1909 | -10/Exiles | Visited The Gauntlet 2271 | -10/Exiles | Discovered new exit (range 15) 2299 | -10/Exiles | Entered Mines 2299 | -9/Mines | Accompanied by 3 allies 2353 | -9/Mines | Discovered new exit (range 11) 2370 | -9/Mines | Met a Derelict bent on vengeance 2379 | -9/Mines | Entered Materials 2379 | -8/Materials | Accompanied by 3 allies 2379 | -8/Materials | Evolved 4 slots: Propulsion x2, Utility x2 2380 | -8/Materials | Identified exit to Factory 2453 | -8/Materials | Self-destructed Last Messages --------------- 02338_ Acquired 31 matter. 02343_ U-05 Engineer lays Concrete. 02344_ U-05 Engineer builds a Wall. 02344_ U-05 Engineer lays Concrete. 02345_ T-07 Excavator is excavating. 02351_ 76:V%8I:%Y60GI2F: 02353_ EXIT=FOUND 02354_ K-01 Serf collects debris. 02370_ D9-BI0(g): "VENGEANCE!" 02375_ System corrupted: Matter fused (-5). PARAMETERS=PROPULSION+2,UTILITY+2 LOCATION=UNKNOWN GOAL=ESCAPE Loading 8 Materials zones... 02395_ Acquired Hacking Suite. 02451_ Ion Engine destroyed. 02453_ Connecting with Terminal... 02453_ Current location identified: Materials >>Access(Branch) No branch access points found. Map ----- +----------------------------------------------------+ | ????????????????????????????????????????? | | ????????????????????????????????????????? | | ????????????????????????????????????????? | | ????????????????????????????????????????? | | ????????????????????????????????????????? | | ????????????????????????????????????????? | | ????????????????? ??????????????????????? | | ????????????????? ??????????????????????? | | ????????????????? ??????????????????????? | | ?????????????????g??????????????????????? | | ???????????????##g###???????????????????? | | ??????????????? k #???????????????????? | | ??????????????? b #???????????????????? | | ??????????????? Y ???? T | | ??????????????? ?????##+## | | ??????????????? ????? # ###### | | ???????????????# #?????" #######????? | | ???????????????# #?????" #??######### | | ???????????????# #?????" #??# | | ???????????????# #????? #??# """"" | | ???????????????# #????? #??# """"" | | ???????????????# #?????#####??# """"" | | ??#######?????## ##???????????# """"" | | ??# #######g #???????????# """"" | | ??# #???????????# """"" | | ??# g @T #???????????# """"" | | ??# g #???????????# | | ??# ####### #???????????######### | | ??## ##?????#######???????????????????? | | ???# #????????????????????????????????? | | ???# #????????????????????????????????? | | ???# #????????????????????????????????? | | ???# ############?????????????????????? | | ???# ## ! #?????????????????????? | | ??## ## #?????????????????????? | | ??# # #??????????????######## | | ??# # #??????????????# | | ??# + #?????????????## """ | | ??# # """ """ #?????????????????????? | | ??# # """ """ #?????????????????????? | | ??## ## """ """ ??????????????????????? | | ???# ##########???????????????????????? | | ???# #????????????????????????????????? | | ???# #????????????????????????????????? | | ???# #????????????????????????????????? | | ???# #????????????????????????????????? | | ???# #????????????????????????????????? | | ???#####????????????????????????????????? | | ????????????????????????????????????????? | | ????????????????????????????????????????? | +----------------------------------------------------+ Best States ------------- Heat Dissipation 31 Energy Generation 10 Energy Capacity 250 Matter Stores 300 Matter Capacity 300 Sight Range 20 Terrain Scan Density 10 Evasion (%) 55 Offensive Hacking 10 Item Schematics ----------------- None Robot Schematics ------------------ None Fabricated ------------ Nothing Alien Tech Used ----------------- None Achievements -------------- None Challenges ------------ None Game ------ Seed LobotomyMiningTerrabomb Manual? 0 Play Time 00:11:24 Cumulative 230.2 hours Start 2024.08.17 @ 16:20:26 End 2024.08.17 @ 16:33:32 Sessions 3 Manual Loads 0 Difficulty Rogue Special Mode None Game No. 96 Rogue 82 Adventurer 14 Explorer 0 Win Type - Total 16 Types 13/0/1/1/0/0/0/0/1 Lore% 46 Gallery% 74 Achievement% 66 Wizard Run 0 Options --------- Layout 1 ASCII 0 Keyboard 0 Movement Mouse Keybinds 0 Fullscreen 1 Font 20/SmallcapsGlow Map View 50x35 Zoom Use 0% Tactical HUD 1 Map Filters NONE Filters NONE Steam 1 RUN: d12f9941-a9bf-407a-b5e9-62d024dd5d77